fUST/lending_fUST_20250302
["ID","MTS","AMOUNT","RATE_DAILY","PERIOD"]
[355011272,1740865857699,-160.0,0.00025752,2]
[355011273,1740865857708,-151.0,0.00025753,7]
[355011274,1740865857718,-151.0,0.00025753,7]
[355011275,1740865857728,-151.0,0.00025753,7]
[355011276,1740865857737,-151.0,0.00025753,7]
[355011277,1740865857747,-151.0,0.00025753,7]
[355011278,1740865857756,-500.0,0.00025753,2]
[355011279,1740865857765,-716.74,0.00025753,2]
[355011280,1740865857774,-151.0,0.00025753,7]
[355011281,1740865857784,-151.0,0.00025753,7]
[355011282,1740865857793,-500.0,0.00025753,2]
[355011283,1740865857804,-304.570815,0.00025753,7]
[355011284,1740865857814,-304.570815,0.00025753,7]
[355011285,1740865857823,-500.0,0.00025753,2]
[355011286,1740865857833,-500.0,0.00025753,2]
[355011287,1740865857843,-552.31012193,0.00025753,2]
[355011288,1740865857852,-611.89,0.00025753,2]
[355011289,1740865857862,-902.31,0.00025753,2]
[355011290,1740865857872,-500.0,0.00025753,2]
[355011291,1740865857882,-151.0,0.00025753,7]
[355011292,1740865857892,-151.0,0.00025753,7]
[355011293,1740865857901,-151.0,0.00025753,7]
[355011294,1740865857912,-151.0,0.00025753,7]
[355011295,1740865857923,-252.531296,0.00025753,7]
[355011296,1740865857933,-500.0,0.00025753,2]
[355011297,1740865857942,-572.07,0.00025753,2]
[355011298,1740865857952,-500.0,0.00025753,2]
[355011299,1740865857962,-1069.98,0.00025753,2]
[355011300,1740865857972,-500.0,0.00025753,2]
[355011301,1740865857982,-500.0,0.00025753,2]
[355011302,1740865857991,-761.98,0.00025753,2]
[355011303,1740865858001,-500.0,0.00025753,2]
[355011304,1740865858011,-500.0,0.00025753,2]
[355011305,1740865858020,-616.95,0.00025753,2]
[355011306,1740865858030,-500.0,0.00025753,2]
[355011307,1740865858040,-500.0,0.00025753,2]
[355011308,1740865858049,-793.31,0.00025753,2]
[355011309,1740865858059,-500.0,0.00025753,2]
[355011310,1740865858068,-500.0,0.00025753,2]
[355011311,1740865858077,-633.80182,0.00025753,7]
[355011312,1740865858089,-633.80182,0.00025753,7]
[355011313,1740865858099,-633.80182,0.00025753,7]
[355011314,1740865858108,-633.80182,0.00025753,7]
[355011315,1740865858118,-1040.31,0.00025753,2]
[355011316,1740865858128,-151.0,0.00025753,7]
[355011317,1740865858137,-151.0,0.00025753,7]
[355011318,1740865858147,-500.0,0.00025753,2]
[355011319,1740865858157,-343.454498,0.00025753,7]
[355011320,1740865858166,-343.454498,0.00025753,7]
[355011321,1740865858176,-343.454498,0.00025753,7]
[355011322,1740865858185,-343.454498,0.00025753,7]
[355011323,1740865858195,-500.0,0.00025753,2]
[355011324,1740865858206,-1041.91,0.00025753,2]
[355011325,1740865858215,-759.41,0.00025753,2]
[355011326,1740865858225,-500.0,0.00025753,2]
[355011327,1740865858235,-669.86,0.00025753,2]
[355011328,1740865858244,-151.0,0.00025753,7]
[355011329,1740865858253,-151.0,0.00025753,7]
[355011330,1740865858263,-998.27,0.00025753,2]
[355011331,1740865858272,-668.29,0.00025753,2]
[355011332,1740865858282,-150.42,0.00025753,2]
[355011333,1740865858291,-981.47,0.00025753,2]
[355011334,1740865858302,-183.000529,0.00025753,7]
[355011335,1740865858313,-183.000529,0.00025753,7]
[355011336,1740865858323,-158.0,0.00025753,2]
[355011337,1740865858333,-500.0,0.00025753,2]
[355011338,1740865858342,-183.000529,0.00025753,7]
[355011339,1740865858352,-183.000529,0.00025753,7]
[355011340,1740865858362,-500.0,0.00025753,2]
[355011341,1740865858372,-1497.06,0.00025753,2]
[355011342,1740865858382,-500.0,0.00025753,2]
[355011343,1740865858392,-500.0,0.00025753,2]
[355011344,1740865858401,-500.0,0.00025753,2]
[355011345,1740865858417,-500.0,0.00025753,2]
[355011346,1740865858427,-1297.68,0.00025753,2]
[355011347,1740865858436,-886.8,0.00025753,2]
[355011348,1740865858446,-671.34,0.00025753,2]
[355011349,1740865858456,-500.0,0.00025753,2]
[355011350,1740865858466,-500.0,0.00025753,2]
[355011351,1740865858476,-653.48,0.00025753,2]
[355011352,1740865858485,-500.0,0.00025753,2]
[355011353,1740865858496,-1032.83,0.00025753,2]
[355011354,1740865858505,-500.0,0.00025753,2]
[355011355,1740865858515,-500.0,0.00025753,2]
[355011356,1740865858525,-1537.98,0.00025753,2]
[355011357,1740865858534,-500.0,0.00025753,2]
[355011358,1740865858545,-1331.5,0.00025753,2]
[355011359,1740865858559,-500.0,0.00025753,2]
[355011360,1740865858569,-500.0,0.00025753,2]
[355011361,1740865858580,-500.0,0.00025753,2]
[355011362,1740865858589,-572.04,0.00025753,2]
[355011363,1740865858599,-500.0,0.00025753,2]
[355011364,1740865858609,-500.0,0.00025753,2]
[355011365,1740865858619,-500.0,0.00025753,2]
[355011366,1740865858629,-723.69,0.00025753,2]
[355011367,1740865858638,-500.0,0.00025753,2]
[355011368,1740865858719,-500.0,0.00025753,2]
[355011369,1740865858729,-500.0,0.00025753,2]
[355011370,1740865858739,-523.15,0.00025753,2]
[355011371,1740865858749,-1539.8,0.00025753,2]
[355011372,1740865858758,-1037.31,0.00025753,2]
[355011373,1740865858768,-500.0,0.00025753,2]
[355011374,1740865858777,-2368.87,0.00025753,2]
[355011375,1740865858786,-1909.25,0.00025753,2]
[355011376,1740865858795,-549.84484688,0.00025753,2]
[355011377,1740865858804,-500.0,0.00025753,2]
[355011378,1740865858814,-500.0,0.00025753,2]
[355011379,1740865858823,-500.0,0.00025753,2]
[355011380,1740865858832,-1079.21,0.00025753,2]
[355011381,1740865858842,-500.0,0.00025753,2]
[355011382,1740865858851,-938.62,0.00025753,2]
[355011383,1740865858861,-1532.28,0.00025753,2]
[355011384,1740865858870,-533.24,0.00025753,2]
[355011385,1740865858879,-1643.94,0.00025753,2]
[355011386,1740865858889,-500.0,0.00025753,2]
[355011387,1740865858898,-500.0,0.00025753,2]
[355011388,1740865858908,-500.0,0.00025753,2]
[355011389,1740865858917,-500.0,0.00025753,2]
[355011390,1740865858926,-1047.29,0.00025753,2]
[355011391,1740865858936,-151.0,0.00025753,7]
[355011392,1740865858945,-232.749812,0.00025753,7]
[355011393,1740865858955,-500.0,0.00025753,2]
[355011394,1740865858964,-659.33,0.00025753,2]
[355011395,1740865858974,-942.58,0.00025753,2]
[355011396,1740865858983,-848.54,0.00025753,2]
[355011397,1740865858993,-500.0,0.00025753,2]
[355011398,1740865859002,-1333.900915,0.00025753,5]
[355011399,1740865859012,-1333.900915,0.00025753,5]
[355011400,1740865859021,-1333.900915,0.00025753,5]
[355011401,1740865859031,-1333.900915,0.00025753,5]
[355011402,1740865859040,-500.0,0.00025753,2]
[355011403,1740865859051,-280.884639,0.00025753,7]
[355011404,1740865859060,-1625.7,0.00025753,2]
[355011405,1740865859070,-2258.14,0.00025753,2]
[355011406,1740865859079,-280.884639,0.00025753,7]
[355011407,1740865859089,-520.02,0.00025753,2]
[355011408,1740865859098,-500.0,0.00025753,2]
[355011409,1740865859107,-500.0,0.00025753,2]
[355011410,1740865859116,-574.97,0.00025753,2]
[355011411,1740865859127,-590.48,0.00025753,2]
[355011412,1740865859138,-1142.55,0.00025753,2]
[355011413,1740865859148,-500.0,0.00025753,2]
[355011414,1740865859158,-151.0,0.00025753,7]
[355011415,1740865859168,-151.0,0.00025753,7]
[355011416,1740865859178,-500.0,0.00025753,2]
[355011417,1740865859188,-151.0,0.00025753,7]
[355011418,1740865859199,-258.784505,0.00025753,7]
[355011419,1740865859209,-500.0,0.00025753,2]
[355011420,1740865859219,-500.0,0.00025753,2]
[355011421,1740865859228,-777.85,0.00025753,2]
[355011422,1740865859238,-994.07,0.00025753,2]
[355011423,1740865859248,-500.0,0.00025753,2]
[355011424,1740865859257,-500.0,0.00025753,2]
[355011425,1740865859267,-276.596932,0.00025753,7]
[355011426,1740865859277,-500.0,0.00025753,2]
[355011427,1740865859286,-500.0,0.00025753,2]
[355011428,1740865859295,-500.0,0.00025753,2]
[355011429,1740865859304,-675.53,0.00025753,2]
[355011430,1740865859314,-847.13,0.00025753,2]
[355011431,1740865859323,-500.0,0.00025753,2]
[355011432,1740865859332,-922.77,0.00025753,2]
[355011433,1740865859342,-541.587699,0.00025753,7]
[355011434,1740865859352,-541.587699,0.00025753,7]
[355011435,1740865859361,-890.33,0.00025753,2]
[355011436,1740865859371,-736.17,0.00025753,2]
[355011437,1740865859381,-659.61,0.00025753,2]
[355011438,1740865859390,-541.587699,0.00025753,7]
[355011439,1740865859400,-541.587699,0.00025753,7]
[355011440,1740865859409,-1130.53,0.00025753,2]
[355011441,1740865859418,-500.0,0.00025753,2]
[355011442,1740865859428,-500.0,0.00025753,2]
[355011443,1740865859437,-1550.64,0.00025753,2]
[355011444,1740865859446,-500.0,0.00025753,2]
[355011445,1740865859456,-518.15,0.00025753,2]
[355011446,1740865859466,-563.74,0.00025753,2]
[355011447,1740865859475,-1430.17,0.00025753,2]
[355011448,1740865859484,-500.0,0.00025753,2]
[355011449,1740865859494,-500.0,0.00025753,2]
[355011450,1740865859503,-151.0,0.00025753,7]
[355011451,1740865859513,-1881.27,0.00025753,2]
[355011452,1740865859522,-151.0,0.00025753,7]
[355011453,1740865859531,-151.0,0.00025753,7]
[355011454,1740865859541,-151.0,0.00025753,7]
[355011455,1740865859552,-4236.82,0.00025753,2]
[355011456,1740865859563,-863.69,0.00025753,2]
[355011457,1740865859572,-679.89,0.00025753,2]
[355011458,1740865859581,-500.0,0.00025753,2]
[355011459,1740865859590,-1497.0,0.00025753,2]
[355011460,1740865859599,-500.0,0.00025753,2]
[355011461,1740865859609,-1693.47,0.00025753,2]
[355011462,1740865859618,-500.0,0.00025753,2]
[355011463,1740865859627,-500.0,0.00025753,2]
[355011464,1740865859637,-500.0,0.00025753,2]
[355011465,1740865859646,-164.82763724,0.00025753,2]
[355011466,1740865859655,-500.0,0.00025753,2]
[355011467,1740865859664,-205.44672798,0.00025753,2]
[355011468,1740865859674,-1358.57,0.00025753,2]
[355011469,1740865859684,-3797.89,0.00025753,2]
[355011470,1740865859694,-150.42,0.00025753,2]
[355011471,1740865859703,-500.0,0.00025753,2]
[355011472,1740865859713,-500.0,0.00025753,2]
[355011473,1740865859722,-150.42,0.00025753,2]
[355011474,1740865859731,-626.03,0.00025753,2]
[355011475,1740865859741,-177.307463,0.00025753,7]
[355011476,1740865859750,-177.307463,0.00025753,7]
[355011477,1740865859759,-519.85,0.00025753,2]
[355011478,1740865859768,-500.0,0.00025753,2]
[355011479,1740865859777,-155304.76972769,0.00025753,2]
[355011480,1740865860481,-5926.62299169,0.00025753,2]
[355011481,1740865899285,-889.76155115,0.00023599,2]
[355011482,1740865899315,-500.0,0.00024141,2]
[355011483,1740865899342,-500.0,0.00024141,2]
[355011484,1740865899374,-573.33325782,0.00024141,2]
[355011485,1740865899401,-500.0,0.00024141,2]
[355011486,1740865899429,-573.33325782,0.00024141,2]
[355011487,1740865899457,-500.0,0.00024141,2]
[355011488,1740865899484,-500.0,0.00024141,2]
[355011489,1740865899512,-573.33325782,0.00024141,2]
[355011490,1740865899539,-500.0,0.00024141,2]
[355011491,1740865899567,-573.33325782,0.00024141,2]
[355011492,1740865899596,-250.0,0.00024141,2]
[355011493,1740865899631,-573.33325782,0.00024141,2]
[355011494,1740865899661,-573.33325782,0.00024141,2]
[355011495,1740865899690,-573.33325782,0.00024141,2]
[355011496,1740865899717,-573.33325782,0.00024141,2]
[355011497,1740865899745,-573.33325782,0.00024141,2]
[355011498,1740865899772,-573.33325782,0.00024141,2]
[355011499,1740865899799,-573.33325782,0.00024141,2]
[355011500,1740865899827,-573.33325782,0.00024141,2]
[355011501,1740865899854,-573.33325782,0.00024141,2]
[355011502,1740865899882,-573.33325782,0.00024141,2]
[355011503,1740865899912,-573.33325782,0.00024141,2]
[355011504,1740865900217,-573.33325782,0.00024141,2]
[355011505,1740865900242,-573.33325782,0.00024141,2]
[355011506,1740865900267,-573.33325782,0.00024141,2]
[355011507,1740865900290,-573.33325782,0.00024141,2]
[355011508,1740865900316,-573.33325782,0.00024141,2]
[355011509,1740865900341,-573.33325782,0.00024141,2]
[355011510,1740865900365,-573.33325782,0.00024141,2]
[355011511,1740865900389,-573.33325782,0.00024141,2]
[355011512,1740865900412,-573.33325782,0.00024141,2]
[355011513,1740865900436,-573.33325782,0.00024141,2]
[355011514,1740865900460,-573.33325782,0.00024141,2]
[355011515,1740865900484,-573.33325782,0.00024141,2]
[355011516,1740865900508,-573.33325782,0.00024141,2]
[355011517,1740865900532,-573.33325782,0.00024141,2]
[355011518,1740865900557,-573.33325782,0.00024141,2]
[355011519,1740865900587,-573.33325782,0.00024141,2]
[355011520,1740865900614,-573.33325782,0.00024141,2]
[355011521,1740865900638,-573.33325782,0.00024141,2]
[355011522,1740865900664,-573.33325782,0.00024141,2]
[355011523,1740865900689,-573.33325782,0.00024141,2]
[355011524,1740865900714,-573.33325782,0.00024141,2]
[355011525,1740865900739,-573.33325782,0.00024141,2]
[355011526,1740865900763,-573.33325782,0.00024141,2]
[355011527,1740865900787,-573.33325782,0.00024141,2]
[355011528,1740865900811,-573.33325782,0.00024141,2]
[355011529,1740865900834,-573.33325782,0.00024141,2]
[355011530,1740865900858,-573.33325782,0.00024141,2]
[355011531,1740865900882,-573.33325782,0.00024141,2]
[355011532,1740865900911,-573.33325782,0.00024141,2]
[355011533,1740865900935,-573.33325782,0.00024141,2]
[355011534,1740865900958,-573.33325782,0.00024141,2]
[355011535,1740865900982,-573.33325782,0.00024141,2]
[355011536,1740865901004,-573.33325782,0.00024141,2]
[355011537,1740865901027,-573.33325782,0.00024141,2]
[355011538,1740865901050,-573.33325782,0.00024141,2]
[355011539,1740865901074,-573.33325782,0.00024141,2]
[355011540,1740865901099,-573.33325782,0.00024141,2]
[355011541,1740865901121,-3000.0,0.00024557,2]
[355011542,1740865901143,-500.0,0.00024657,2]
[355011543,1740865901164,-500.0,0.00024657,2]
[355011544,1740865901186,-500.0,0.00024657,2]
[355011545,1740865901208,-500.0,0.00024657,2]
[355011546,1740865901230,-500.0,0.00024657,2]
[355011547,1740865901252,-703.96,0.00024657,2]
[355011548,1740865901273,-500.0,0.00024657,2]
[355011549,1740865901294,-500.0,0.00024657,2]
[355011550,1740865901315,-500.0,0.00024657,2]
[355011551,1740865901337,-250.0,0.00024657,2]
[355011552,1740865901357,-500.0,0.00024657,2]
[355011553,1740865901378,-500.0,0.00024657,2]
[355011554,1740865901398,-1501.69,0.00024657,2]
[355011555,1740865901419,-1280.83,0.00024657,2]
[355011556,1740865901440,-500.0,0.00024657,2]
[355011557,1740865901461,-500.0,0.00024657,2]
[355011558,1740865901482,-1110.27,0.00024657,2]
[355011559,1740865901503,-500.0,0.00024657,2]
[355011560,1740865901524,-500.0,0.00024657,2]
[355011561,1740865901545,-500.0,0.00024657,2]
[355011562,1740865901569,-3006.67,0.00024657,2]
[355011563,1740865901591,-576.60725123,0.00024657,2]
[355011564,1740865901612,-561.54,0.00024657,2]
[355011565,1740865901634,-1375.86,0.00024657,2]
[355011566,1740865901658,-65179.48179098,0.00024657,2]
[355011578,1740866776285,-150.0,0.00022557,2]
[355011579,1740866816195,-150.0,0.00022512,2]
[355011580,1740866833109,-1.51494946,0.00022512,2]
[355011581,1740866833132,-380.90545198,0.00022557,2]
[355011582,1740866833920,-112.26891545,0.00022557,2]
[355011583,1740866852083,-228.78094404,0.00023237,2]
[355011584,1740866950310,230.0,0.00025,120]
[355011585,1740866955473,-150.0,0.00022374,2]
[355011586,1740866979787,-150.0,0.00022339,2]
[355011587,1740867001915,-150.0,0.00022339,2]
[355011614,1740867032537,-3743.64387121,0.00022339,2]
[355011615,1740867032585,-5956.35612879,0.00022339,2]
[355011616,1740867032597,-57.0315108,0.00022374,2]
[355011617,1740867032609,-2016.62804775,0.00023182,2]
[355011618,1740867032621,-300.0,0.00023236,2]
[355011619,1740867032633,-500.0,0.00023237,2]
[355011620,1740867032644,-500.0,0.00023237,2]
[355011621,1740867032655,-306.64431265,0.00023237,2]
[355011622,1740867032669,-193.35568735,0.00023237,2]
[355011623,1740867032682,-500.0,0.00023237,2]
[355011624,1740867032693,-500.0,0.00023237,2]
[355011625,1740867032704,-500.0,0.00023237,2]
[355011626,1740867032715,-500.0,0.00023237,2]
[355011627,1740867032726,-34.64431261,0.00023237,2]
[355011628,1740867032740,-465.35568739,0.00023237,2]
[355011629,1740867032751,-500.0,0.00023237,2]
[355011630,1740867032762,-490.95236484,0.00023237,2]
[355011640,1740867038155,-9.04763516,0.00023237,2]
[355011641,1740867038165,-500.0,0.00023237,2]
[355011642,1740867038175,-500.0,0.00023237,2]
[355011643,1740867038186,-521.90352043,0.00023237,2]
[355011644,1740867038197,-500.0,0.00023237,2]
[355011645,1740867038207,-300.0,0.00023237,2]
[355011646,1740867038217,-500.0,0.00023237,2]
[355011648,1740867038228,-500.0,0.00023237,2]
[355011649,1740867038238,-500.0,0.00023237,2]
[355011650,1740867038248,-416.00400901,0.00023237,2]
[355011652,1740867038258,-500.0,0.00023237,2]
[355011653,1740867038268,-500.0,0.00023237,2]
[355011654,1740867038279,-500.0,0.00023237,2]
[355011655,1740867038289,-500.0,0.00023237,2]
[355011656,1740867038299,-500.0,0.00023237,2]
[355011657,1740867038310,-591.20676642,0.00023237,2]
[355011658,1740867038321,-500.0,0.00023237,2]
[355011659,1740867038330,-500.0,0.00023237,2]
[355011660,1740867038340,-500.0,0.00023237,2]
[355011661,1740867038349,-500.0,0.00023237,2]
[355011662,1740867038359,-613.4163367,0.00023237,2]
[355011663,1740867038369,-500.0,0.00023237,2]
[355011664,1740867038378,-500.0,0.00023237,2]
[355011665,1740867038388,-500.0,0.00023237,2]
[355011666,1740867038398,-500.0,0.00023237,2]
[355011667,1740867038408,-500.0,0.00023237,2]
[355011668,1740867038418,-500.0,0.00023237,2]
[355011669,1740867038428,-500.0,0.00023237,2]
[355011670,1740867038438,-500.0,0.00023237,2]
[355011671,1740867038449,-500.0,0.00023237,2]
[355011672,1740867038459,-500.0,0.00023237,2]
[355011673,1740867038469,-24900.0,0.00023238,2]
[355011674,1740867038479,-771.360606,0.00023282,2]
[355011675,1740867038489,-3517.2134468,0.00023287,2]
[355011676,1740867038498,-185.244618,0.0002337,2]
[355011677,1740867038508,-2466.2609964,0.00023421,2]
[355011678,1740867038518,-250.0,0.00023517,2]
[355011679,1740867038528,-150.0,0.00023517,2]
[355011680,1740867038538,-184.58281798,0.000237,2]
[355011681,1740867038548,-1235.4925996,0.00023843,2]
[355011682,1740867038558,-2016.62804774,0.00023926,2]
[355011683,1740867038568,-157.41503691,0.00024192,2]
[355011684,1740867038578,-157.41503691,0.00024411,2]
[355011685,1740867038588,-185.244618,0.00024539,2]
[355011686,1740867038598,-3000.0,0.00024557,2]
[355011687,1740867038608,-197.87834524,0.00024557,2]
[355011688,1740867038618,-200.00000001,0.00024557,2]
[355011689,1740867038629,-157.41503691,0.00024603,2]
[355011690,1740867038639,-151.0,0.00024642,2]
[355011691,1740867038649,-500.0,0.00024642,2]
[355011692,1740867038658,-253.09,0.00024647,3]
[355011693,1740867038668,-759.31,0.00024647,3]
[355011694,1740867038677,-300.0,0.00024647,3]
[355011695,1740867038687,-499.96903014,0.00024656,2]
[355011696,1740867038697,-558.0528088,0.00024656,2]
[355011697,1740867038708,-500.0,0.00024657,2]
[355011698,1740867038717,-500.0,0.00024657,2]
[355011699,1740867038727,-500.0,0.00024657,2]
[355011700,1740867038737,-938.68,0.00024657,2]
[355011701,1740867038747,-500.0,0.00024657,2]
[355011702,1740867038756,-500.0,0.00024657,2]
[355011703,1740867038766,-500.0,0.00024657,2]
[355011704,1740867038776,-500.0,0.00024657,2]
[355011705,1740867038786,-500.0,0.00024657,2]
[355011706,1740867038796,-500.0,0.00024657,2]
[355011707,1740867038806,-500.0,0.00024657,2]
[355011708,1740867038817,-999.27,0.00024657,2]
[355011709,1740867038826,-500.0,0.00024657,2]
[355011710,1740867038836,-500.0,0.00024657,2]
[355011711,1740867038846,-500.0,0.00024657,2]
[355011712,1740867038856,-500.0,0.00024657,2]
[355011713,1740867038865,-500.0,0.00024657,2]
[355011714,1740867038876,-500.0,0.00024657,2]
[355011715,1740867038885,-500.0,0.00024657,2]
[355011716,1740867038896,-1245.59,0.00024657,2]
[355011717,1740867038905,-500.0,0.00024657,2]
[355011718,1740867038916,-500.0,0.00024657,2]
[355011719,1740867038930,-500.0,0.00024657,2]
[355011720,1740867038939,-500.0,0.00024657,2]
[355011721,1740867038949,-602.9,0.00024657,2]
[355011722,1740867038958,-500.0,0.00024657,2]
[355011723,1740867038970,-500.0,0.00024657,2]
[355011724,1740867038980,-500.0,0.00024657,2]
[355011725,1740867038990,-500.0,0.00024657,2]
[355011726,1740867039001,-500.0,0.00024657,2]
[355011727,1740867039012,-500.0,0.00024657,2]
[355011728,1740867039022,-726.93,0.00024657,2]
[355011729,1740867039032,-500.0,0.00024657,2]
[355011730,1740867039042,-500.0,0.00024657,2]
[355011731,1740867039052,-500.0,0.00024657,2]
[355011732,1740867039061,-500.0,0.00024657,2]
[355011733,1740867039071,-453.94059428,0.00024657,2]
[355011734,1740867039081,-500.0,0.00024657,2]
[355011735,1740867039091,-500.0,0.00024657,2]
[355011736,1740867039100,-667.7,0.00024657,2]
[355011737,1740867039110,-500.0,0.00024657,2]
[355011738,1740867039120,-500.0,0.00024657,2]
[355011739,1740867039130,-580.46,0.00024657,2]
[355011740,1740867039140,-500.0,0.00024657,2]
[355011741,1740867039149,-500.0,0.00024657,2]
[355011742,1740867039159,-509.27511864,0.00024657,2]
[355011743,1740867039168,-500.0,0.00024657,2]
[355011744,1740867039178,-500.0,0.00024657,2]
[355011745,1740867039187,-500.0,0.00024657,2]
[355011746,1740867039197,-500.0,0.00024657,2]
[355011747,1740867039207,-500.0,0.00024657,2]
[355011748,1740867039217,-500.0,0.00024657,2]
[355011749,1740867039227,-500.0,0.00024657,2]
[355011750,1740867039236,-500.0,0.00024657,2]
[355011751,1740867039247,-704.32,0.00024657,2]
[355011752,1740867039256,-500.0,0.00024657,2]
[355011753,1740867039266,-500.0,0.00024657,2]
[355011754,1740867039275,-500.0,0.00024657,2]
[355011755,1740867039285,-500.0,0.00024657,2]
[355011756,1740867039295,-500.0,0.00024657,2]
[355011757,1740867039305,-500.0,0.00024657,2]
[355011758,1740867039315,-500.0,0.00024657,2]
[355011759,1740867039326,-494.49,0.00024657,2]
[355011760,1740867039335,-500.0,0.00024657,2]
[355011761,1740867039346,-500.0,0.00024657,2]
[355011762,1740867039356,-500.0,0.00024657,2]
[355011763,1740867039366,-501.52044205,0.00024657,2]
[355011764,1740867039376,-500.0,0.00024657,2]
[355011765,1740867039385,-500.0,0.00024657,2]
[355011766,1740867039395,-500.0,0.00024657,2]
[355011767,1740867039405,-506.05253832,0.00024657,2]
[355011768,1740867039416,-224.32975902,0.00024657,2]
[355011769,1740867039426,-500.0,0.00024657,2]
[355011770,1740867039435,-859.52,0.00024657,2]
[355011771,1740867039445,-500.0,0.00024657,2]
[355011772,1740867039455,-500.0,0.00024657,2]
[355011773,1740867039464,-500.0,0.00024657,2]
[355011774,1740867039475,-500.0,0.00024657,2]
[355011775,1740867039485,-500.0,0.00024657,2]
[355011776,1740867039495,-500.0,0.00024657,2]
[355011777,1740867039504,-586.13,0.00024657,2]
[355011778,1740867039514,-500.0,0.00024657,2]
[355011779,1740867039524,-500.0,0.00024657,2]
[355011780,1740867039535,-500.0,0.00024657,2]
[355011781,1740867039544,-500.0,0.00024657,2]
[355011782,1740867039554,-520.03020786,0.00024657,2]
[355011783,1740867039564,-500.0,0.00024657,2]
[355011784,1740867039574,-500.0,0.00024657,2]
[355011785,1740867039583,-500.0,0.00024657,2]
[355011786,1740867039593,-500.0,0.00024657,2]
[355011787,1740867039603,-492.40166588,0.00024657,2]
[355011788,1740867039613,-929.79,0.00024657,2]
[355011789,1740867039623,-932.58,0.00024657,2]
[355011791,1740867039633,-500.0,0.00024657,2]
[355011793,1740867039643,-500.0,0.00024657,2]
[355011795,1740867039652,-500.0,0.00024657,2]
[355011797,1740867039662,-500.0,0.00024657,2]
[355011798,1740867039671,-500.0,0.00024657,2]
[355011799,1740867039681,-500.0,0.00024657,2]
[355011800,1740867039690,-500.0,0.00024657,2]
[355011801,1740867039700,-523.99326654,0.00024657,2]
[355011802,1740867039710,-500.0,0.00024657,2]
[355011803,1740867039719,-649.09,0.00024657,2]
[355011804,1740867039729,-594.09,0.00024657,2]
[355011805,1740867039738,-766.27,0.00024657,2]
[355011806,1740867039748,-500.0,0.00024657,2]
[355011807,1740867039757,-1352.22,0.00024657,2]
[355011808,1740867039767,-791.71,0.00024657,2]
[355011809,1740867039776,-513.22129983,0.00024657,2]
[355011810,1740867039786,-500.0,0.00024657,2]
[355011811,1740867039795,-1360.2,0.00024657,2]
[355011812,1740867039805,-500.0,0.00024657,2]
[355011813,1740867039816,-809.89,0.00024657,2]
[355011814,1740867039825,-500.0,0.00024657,2]
[355011815,1740867039835,-500.0,0.00024657,2]
[355011816,1740867039844,-500.0,0.00024657,2]
[355011817,1740867039854,-500.0,0.00024657,2]
[355011818,1740867039864,-500.0,0.00024657,2]
[355011819,1740867039874,-500.0,0.00024657,2]
[355011820,1740867039885,-500.0,0.00024657,2]
[355011821,1740867039894,-593.7,0.00024657,2]
[355011822,1740867039904,-596.29,0.00024657,2]
[355011823,1740867039915,-500.0,0.00024657,2]